fUST/lending_fUST_20250814
["ID","MTS","AMOUNT","RATE_DAILY","PERIOD"]
[379117445,1755151850236,-275.819166,0.00018468,2]
[379117446,1755151850246,-842.87,0.00018468,2]
[379117447,1755151850255,-460.0,0.00018468,2]
[379117448,1755151850264,-460.0,0.00018468,2]
[379117449,1755151850274,-753.95,0.00018468,2]
[379117450,1755151850283,-460.0,0.00018468,2]
[379117451,1755151850293,-460.0,0.00018468,2]
[379117452,1755151850303,-524.58,0.00018468,2]
[379117453,1755151850312,-151.0,0.00018468,2]
[379117454,1755151850321,-151.0,0.00018468,2]
[379117455,1755151850330,-460.0,0.00018468,2]
[379117456,1755151850339,-460.0,0.00018468,2]
[379117457,1755151850349,-888.7,0.00018468,2]
[379117458,1755151850358,-460.0,0.00018468,2]
[379117459,1755151850368,-460.0,0.00018468,2]
[379117460,1755151850377,-460.0,0.00018468,2]
[379117461,1755151850386,-460.0,0.00018468,2]
[379117462,1755151850396,-460.0,0.00018468,2]
[379117463,1755151850405,-460.0,0.00018468,2]
[379117464,1755151850415,-732.54,0.00018468,2]
[379117465,1755151850424,-756.58,0.00018468,2]
[379117466,1755151850434,-521.68,0.00018468,2]
[379117467,1755151850443,-460.0,0.00018468,2]
[379117468,1755151850453,-270.008103,0.00018468,2]
[379117469,1755151850462,-270.008103,0.00018468,2]
[379117470,1755151850471,-270.008103,0.00018468,2]
[379117471,1755151850481,-270.008103,0.00018468,2]
[379117472,1755151850490,-460.0,0.00018468,2]
[379117473,1755151850500,-460.0,0.00018468,2]
[379117474,1755151850509,-460.0,0.00018468,2]
[379117475,1755151850519,-1854.61,0.00018468,2]
[379117476,1755151850528,-460.0,0.00018468,2]
[379117477,1755151850538,-460.0,0.00018468,2]
[379117478,1755151850548,-460.0,0.00018468,2]
[379117479,1755151850558,-460.0,0.00018468,2]
[379117480,1755151850570,-460.0,0.00018468,2]
[379117481,1755151850580,-273.63395451,0.00018468,2]
[379117482,1755151850590,-460.0,0.00018468,2]
[379117483,1755151850600,-460.0,0.00018468,2]
[379117484,1755151850609,-460.0,0.00018468,2]
[379117485,1755151850618,-460.0,0.00018468,2]
[379117486,1755151850627,-616.59,0.00018468,2]
[379117487,1755151850636,-151.0,0.00018469,2]
[379117488,1755151850646,-151.0,0.00018469,2]
[379117489,1755151850655,-151.0,0.00018469,2]
[379117490,1755151850664,-151.219101,0.00018469,2]
[379117491,1755151850674,-151.0,0.00018469,2]
[379117492,1755151850683,-293.597792,0.00018469,2]
[379117493,1755151850693,-293.597792,0.00018469,2]
[379117494,1755151850702,-500.0,0.0001847,2]
[379117495,1755151850712,-151.0,0.0001847,2]
[379117496,1755151850721,-217.993164,0.0001847,2]
[379117497,1755151850730,-460.0,0.0001847,2]
[379117498,1755151850740,-460.0,0.0001847,2]
[379117499,1755151850749,-460.0,0.0001847,2]
[379117500,1755151850758,-460.0,0.0001847,2]
[379117501,1755151850768,-151.724719,0.0001847,2]
[379117502,1755151850777,-460.0,0.0001847,2]
[379117503,1755151850786,-460.0,0.0001847,2]
[379117504,1755151850795,-460.0,0.0001847,2]
[379117505,1755151850805,-460.0,0.0001847,2]
[379117506,1755151850816,-460.0,0.0001847,2]
[379117507,1755151850825,-460.0,0.0001847,2]
[379117508,1755151850835,-468.54760259,0.0001847,2]
[379117509,1755151850844,-546.11,0.0001847,2]
[379117510,1755151850853,-293.597792,0.0001847,2]
[379117511,1755151850863,-293.597792,0.0001847,2]
[379117512,1755151850872,-460.0,0.0001847,2]
[379117513,1755151850882,-460.0,0.0001847,2]
[379117514,1755151850891,-460.0,0.0001847,2]
[379117515,1755151850900,-460.0,0.0001847,2]
[379117516,1755151850912,-460.0,0.0001847,2]
[379117517,1755151850923,-460.0,0.0001847,2]
[379117518,1755151850932,-460.0,0.0001847,2]
[379117519,1755151850941,-460.0,0.0001847,2]
[379117520,1755151850950,-460.0,0.0001847,2]
[379117521,1755151850961,-460.0,0.0001847,2]
[379117522,1755151850971,-460.0,0.0001847,2]
[379117523,1755151850980,-460.0,0.0001847,2]
[379117524,1755151850990,-460.0,0.0001847,2]
[379117525,1755151850999,-541.97,0.0001847,2]
[379117526,1755151851008,-460.0,0.0001847,2]
[379117527,1755151851018,-460.0,0.0001847,2]
[379117528,1755151851027,-228.46459569,0.0001847,2]
[379117529,1755151851036,-460.0,0.0001847,2]
[379117530,1755151851045,-527.68955278,0.0001847,2]
[379117531,1755151851055,-460.0,0.0001847,2]
[379117532,1755151851066,-460.0,0.0001847,2]
[379117533,1755151851075,-460.0,0.0001847,2]
[379117534,1755151851085,-500.0,0.0001847,2]
[379117535,1755151851094,-460.0,0.0001847,2]
[379117536,1755151851104,-460.0,0.0001847,2]
[379117537,1755151851113,-460.0,0.0001847,2]
[379117538,1755151851123,-733.61,0.0001847,2]
[379117539,1755151851132,-931.74,0.0001847,2]
[379117540,1755151851141,-607.0,0.0001847,2]
[379117541,1755151851150,-460.0,0.0001847,2]
[379117542,1755151851160,-460.0,0.0001847,2]
[379117543,1755151851169,-460.0,0.0001847,2]
[379117544,1755151851179,-460.0,0.0001847,2]
[379117545,1755151851189,-620.5,0.0001847,2]
[379117546,1755151851199,-460.0,0.0001847,2]
[379117547,1755151851208,-275.819166,0.0001847,2]
[379117548,1755151851218,-460.0,0.0001847,2]
[379117549,1755151851227,-275.819166,0.0001847,2]
[379117550,1755151851237,-460.0,0.0001847,2]
[379117551,1755151851246,-460.0,0.0001847,2]
[379117552,1755151851255,-460.0,0.0001847,2]
[379117553,1755151851265,-460.0,0.0001847,2]
[379117554,1755151851274,-460.0,0.0001847,2]
[379117555,1755151851284,-460.0,0.0001847,2]
[379117556,1755151851293,-476.38556634,0.0001847,2]
[379117557,1755151851303,-460.0,0.0001847,2]
[379117558,1755151851313,-151.0,0.0001847,2]
[379117559,1755151851323,-460.0,0.0001847,2]
[379117560,1755151851332,-460.0,0.0001847,2]
[379117561,1755151851342,-460.0,0.0001847,2]
[379117562,1755151851351,-460.0,0.0001847,2]
[379117563,1755151851360,-1280.35,0.0001847,2]
[379117564,1755151851370,-460.0,0.0001847,2]
[379117565,1755151851382,-270.008103,0.0001847,2]
[379117566,1755151851391,-270.008103,0.0001847,2]
[379117567,1755151851400,-301.26519652,0.0001847,2]
[379117568,1755151851410,-460.0,0.0001847,2]
[379117569,1755151851420,-151.0,0.0001847,2]
[379117570,1755151851429,-537.84,0.0001847,2]
[379117571,1755151851439,-460.0,0.0001847,2]
[379117572,1755151851449,-460.0,0.0001847,2]
[379117573,1755151851459,-534.60058556,0.0001847,2]
[379117574,1755151851468,-460.0,0.0001847,2]
[379117575,1755151851478,-460.0,0.0001847,2]
[379117576,1755151851487,-500.0,0.00018473,2]
[379117577,1755151851497,-500.0,0.00018473,2]
[379117578,1755151851506,-500.0,0.00018473,2]
[379117579,1755151851516,-500.0,0.00018473,2]
[379117580,1755151851525,-500.0,0.00018473,2]
[379117581,1755151851535,-168.46481019,0.00018473,2]
[379117582,1755151851544,-244.93629224,0.00018473,2]
[379117583,1755151851554,-500.0,0.00018473,2]
[379117584,1755151851566,-500.0,0.00018473,2]
[379117585,1755151851576,-500.0,0.00018473,2]
[379117586,1755151851587,-151.0,0.00018477,2]
[379117587,1755151851598,-151.0,0.00018477,2]
[379117588,1755151851607,-151.0,0.00018477,2]
[379117589,1755151851616,-586.56981,0.00018477,2]
[379117590,1755151851626,-586.56981,0.00018477,2]
[379117591,1755151851636,-270.008103,0.00018478,2]
[379117592,1755151851646,-270.008103,0.00018478,2]
[379117593,1755151851656,-151.0,0.00018479,2]
[379117594,1755151851665,-460.0,0.00018479,2]
[379117595,1755151851674,-460.0,0.00018479,2]
[379117596,1755151851683,-460.0,0.00018479,2]
[379117597,1755151851693,-460.0,0.00018479,2]
[379117598,1755151851703,-460.0,0.00018479,2]
[379117599,1755151851713,-151.0,0.00018482,2]
[379117600,1755151851722,-151.0,0.00018482,2]
[379117601,1755151851731,-293.597792,0.00018482,2]
[379117602,1755151851741,-293.597792,0.00018482,2]
[379117603,1755151851751,-586.56981,0.00018482,2]
[379117604,1755151851761,-586.56981,0.00018482,2]
[379117605,1755151851770,-200.0,0.00018553,20]
[379117606,1755151851779,-200.0,0.00018553,20]
[379117607,1755151851789,-200.0,0.00018553,20]
[379117608,1755151851798,-200.0,0.00018553,20]
[379117609,1755151851807,-200.0,0.00018553,20]
[379117610,1755151851818,-200.0,0.00018553,20]
[379117611,1755151851828,-151.39053355,0.0001859,2]
[379117612,1755151851837,-151.0,0.0001859,2]
[379117613,1755151851846,-151.0,0.0001859,2]
[379117614,1755151851856,-151.0,0.0001859,2]
[379117615,1755151851865,-151.0,0.0001859,2]
[379117616,1755151851875,-151.0,0.0001859,2]
[379117617,1755151851884,-151.0,0.0001859,2]
[379117618,1755151851893,-151.0,0.0001859,2]
[379117619,1755151851903,-151.0,0.0001859,2]
[379117620,1755151851915,-151.0,0.0001859,3]
[379117621,1755151851924,-151.0,0.0001859,3]
[379117622,1755151851933,-151.0,0.0001859,3]
[379117623,1755151851943,-202.84673891,0.0001859,3]
[379117624,1755151851952,-151.0,0.0001859,3]
[379117625,1755151851962,-151.0,0.0001859,3]
[379117626,1755151851971,-293.5592996,0.000186,2]
[379117627,1755151851981,-293.5592996,0.000186,2]
[379117628,1755151851992,-293.5592996,0.000186,2]
[379117629,1755151852002,-166.9440266,0.000186,2]
[379117630,1755151852012,-183.0,0.00018734,2]
[379117631,1755151852021,-568.51,0.00018737,2]
[379117632,1755151852031,-460.0,0.00018737,2]
[379117633,1755151852040,-460.0,0.00018737,2]
[379117634,1755151852050,-460.0,0.00018737,2]
[379117635,1755151852059,-460.0,0.00018737,2]
[379117636,1755151852069,-460.0,0.00018737,2]
[379117637,1755151852078,-833.3,0.00018738,2]
[379117638,1755151852088,-460.0,0.00018738,2]
[379117639,1755151852097,-3376.59,0.00018738,2]
[379117640,1755151852106,-1098.68,0.00018738,2]
[379117641,1755151852116,-460.0,0.00018738,2]
[379117642,1755151852125,-460.0,0.00018738,2]
[379117643,1755151852135,-4997.03,0.00018738,2]
[379117644,1755151852144,-460.0,0.00018738,2]
[379117645,1755151852154,-1987.3,0.00018738,2]
[379117646,1755151852164,-460.0,0.00018738,2]
[379117647,1755151852173,-3726.96,0.00018738,2]
[379117648,1755151852183,-460.0,0.00018738,2]
[379117649,1755151852192,-610.63,0.00018738,2]
[379117650,1755151852202,-958.79,0.00018738,2]
[379117651,1755151852211,-5658.67,0.00018738,2]
[379117652,1755151852358,-4628.58,0.00018738,2]
[379117653,1755151852368,-801.6,0.00018738,2]
[379117654,1755151852377,-737.72,0.00018738,2]
[379117655,1755151852386,-1024.82,0.00018738,2]
[379117656,1755151852395,-620.87,0.00018738,2]
[379117657,1755151852405,-2711.67,0.00018738,2]
[379117658,1755151852414,-460.0,0.00018738,2]
[379117659,1755151852427,-970.56,0.00018738,2]
[379117660,1755151852440,-645.21,0.00018738,2]
[379117661,1755151852449,-1569.54,0.00018738,2]
[379117662,1755151852458,-460.0,0.00018738,2]
[379117663,1755151852468,-555.97,0.00018738,2]
[379117664,1755151852478,-460.0,0.00018738,2]
[379117665,1755151852487,-460.0,0.00018739,2]
[379117666,1755151852496,-487.97419002,0.00018739,2]
[379117667,1755151852505,-460.0,0.00018739,2]
[379117668,1755151852514,-460.0,0.00018739,2]
[379117669,1755151852523,-460.0,0.00018739,2]
[379117670,1755151852533,-365.32276259,0.00018739,2]
[379117671,1755151852542,-760.57,0.00018739,2]
[379117672,1755151852552,-460.0,0.00018739,2]
[379117673,1755151852561,-460.0,0.00018739,2]
[379117674,1755151852572,-460.0,0.00018739,2]
[379117675,1755151852581,-460.0,0.00018739,2]
[379117676,1755151852591,-460.0,0.00018739,2]
[379117677,1755151852600,-460.0,0.00018739,2]
[379117678,1755151852609,-460.0,0.00018739,2]
[379117679,1755151852618,-460.0,0.00018739,2]
[379117680,1755151852628,-460.0,0.00018739,2]
[379117681,1755151852637,-460.0,0.00018739,2]
[379117682,1755151852647,-460.0,0.00018739,2]
[379117683,1755151852656,-460.0,0.00018739,2]
[379117684,1755151852665,-460.0,0.00018739,2]
[379117685,1755151852675,-460.0,0.00018739,2]
[379117686,1755151852684,-460.0,0.00018739,2]
[379117687,1755151852693,-460.0,0.00018739,2]
[379117688,1755151852703,-460.0,0.00018739,2]
[379117689,1755151852712,-460.0,0.00018739,2]
[379117690,1755151852721,-460.0,0.00018739,2]
[379117691,1755151852730,-466.61,0.00018739,2]
[379117692,1755151852740,-383.66325514,0.00018739,2]
[379117693,1755151852749,-485.86,0.00018739,2]
[379117694,1755151852758,-498.83,0.00018739,2]
[379117695,1755151852768,-475.61366461,0.00018739,2]
[379117696,1755151852777,-551.42,0.00018739,2]
[379117697,1755151852786,-460.0,0.00018739,2]
[379117698,1755151852796,-1283.62,0.00018739,2]
[379117699,1755151852805,-460.0,0.00018739,2]
[379117700,1755151852816,-531.32,0.00018739,2]
[379117701,1755151852826,-2170.36,0.00018739,2]
[379117702,1755151852835,-460.0,0.00018739,2]
[379117703,1755151852844,-1167.26,0.00018739,2]
[379117704,1755151852853,-460.0,0.00018739,2]
[379117705,1755151852862,-460.0,0.00018739,2]
[379117706,1755151852871,-460.0,0.00018739,2]
[379117707,1755151852880,-460.0,0.00018739,2]
[379117708,1755151852890,-460.0,0.00018739,2]
[379117709,1755151852899,-460.0,0.00018739,2]
[379117710,1755151852910,-2917.63,0.00018739,2]
[379117711,1755151852922,-460.0,0.00018739,2]
[379117712,1755151852931,-460.0,0.00018739,2]
[379117713,1755151852941,-1515.08,0.00018739,2]
[379117714,1755151852951,-754.28,0.00018739,2]
[379117715,1755151852960,-460.0,0.00018739,2]
[379117716,1755151852969,-871.57,0.00018739,2]
[379117717,1755151852978,-460.0,0.00018739,2]
[379117718,1755151852988,-460.0,0.00018739,2]
[379117719,1755151852998,-786.56,0.00018739,2]
[379117720,1755151853008,-784.25,0.00018739,2]
[379117721,1755151853017,-1090.07,0.00018739,2]
[379117722,1755151853027,-609.52,0.00018739,2]
[379117723,1755151853036,-460.0,0.00018739,2]
[379117724,1755151853046,-460.0,0.00018739,2]
[379117725,1755151853055,-460.0,0.00018739,2]
[379117726,1755151853067,-460.0,0.00018739,2]
[379117727,1755151853076,-1053.82,0.00018739,2]
[379117728,1755151853085,-574.85,0.00018739,2]
[379117729,1755151853095,-460.0,0.00018739,2]
[379117730,1755151853105,-598.78,0.00018739,2]
[379117731,1755151853114,-496.47907655,0.00018739,2]
[379117732,1755151853124,-460.0,0.00018739,2]
[379117733,1755151853133,-1159.3,0.00018739,2]
[379117734,1755151853143,-460.0,0.00018739,2]
[379117735,1755151853152,-460.0,0.00018739,2]
[379117736,1755151853161,-460.0,0.00018739,2]
[379117737,1755151853171,-943.86,0.00018739,2]
[379117738,1755151853181,-460.0,0.00018739,2]
[379117739,1755151853190,-460.0,0.00018739,2]
[379117740,1755151853199,-460.0,0.00018739,2]
[379117741,1755151853209,-1678.71,0.00018739,2]
[379117742,1755151853219,-1021.02,0.00018739,2]
[379117743,1755151853228,-460.0,0.00018739,2]
[379117744,1755151853238,-460.0,0.00018739,2]
[379117745,1755151853248,-460.0,0.00018739,2]
[379117746,1755151853258,-911.17,0.00018739,2]
[379117747,1755151853268,-460.0,0.00018739,2]
[379117748,1755151853277,-1478.57,0.00018739,2]
[379117749,1755151853286,-460.0,0.00018739,2]
[379117750,1755151853296,-460.0,0.00018739,2]
[379117751,1755151853305,-460.0,0.00018739,2]
[379117752,1755151853316,-460.0,0.00018739,2]
[379117753,1755151853325,-460.0,0.00018739,2]
[379117754,1755151853335,-460.0,0.00018739,2]
[379117755,1755151853344,-460.0,0.00018739,2]
[379117756,1755151853354,-477.48,0.00018739,2]
[379117757,1755151853363,-481.88,0.00018739,2]
[379117758,1755151853372,-460.0,0.00018739,2]
[379117759,1755151853382,-460.0,0.0001874,2]
[379117760,1755151853391,-500.0,0.0001874,2]
[379117761,1755151853400,-460.0,0.0001874,2]
[379117762,1755151853409,-675.75,0.0001874,2]
[379117763,1755151853418,-460.0,0.0001874,2]
[379117764,1755151853428,-460.0,0.0001874,2]
[379117765,1755151853437,-1956.44,0.0001874,2]
[379117766,1755151853447,-460.0,0.0001874,2]
[379117767,1755151853456,-460.0,0.0001874,2]
[379117768,1755151853465,-460.0,0.0001874,2]
[379117769,1755151853474,-460.0,0.0001874,2]
[379117770,1755151853483,-682.34,0.0001874,2]
[379117771,1755151853493,-460.0,0.0001874,2]
[379117772,1755151853502,-460.0,0.0001874,2]
[379117773,1755151853511,-460.0,0.0001874,2]
[379117774,1755151853520,-275.819166,0.0001874,2]
[379117775,1755151853530,-275.819166,0.0001874,2]
[379117776,1755151853539,-460.0,0.0001874,2]
[379117777,1755151853549,-460.0,0.0001874,2]
[379117778,1755151853559,-460.0,0.0001874,2]
[379117779,1755151853569,-530.77,0.0001874,2]
[379117780,1755151853578,-659.52,0.0001874,2]
[379117781,1755151853587,-460.0,0.0001874,2]
[379117782,1755151853597,-460.0,0.0001874,2]
[379117783,1755151853606,-460.0,0.0001874,2]
[379117784,1755151853615,-460.0,0.0001874,2]
[379117785,1755151853626,-460.0,0.0001874,2]
[379117786,1755151853635,-460.0,0.0001874,2]
[379117787,1755151853645,-460.0,0.0001874,2]
[379117788,1755151853654,-460.0,0.0001874,2]
[379117789,1755151853663,-1079.09,0.0001874,2]
[379117790,1755151853673,-460.0,0.0001874,2]
[379117791,1755151853682,-492.05,0.0001874,2]
[379117792,1755151853692,-1830.62,0.0001874,2]
[379117793,1755151853701,-460.0,0.0001874,2]
[379117794,1755151853711,-460.0,0.0001874,2]
[379117795,1755151853720,-460.0,0.0001874,2]
[379117796,1755151853730,-465.16344037,0.0001874,2]
[379117797,1755151853740,-151.0,0.0001874,2]
[379117798,1755151853749,-460.0,0.0001874,2]
[379117799,1755151853758,-460.0,0.0001874,2]
[379117800,1755151853767,-460.0,0.0001874,2]
[379117801,1755151853776,-460.0,0.0001874,2]
[379117802,1755151853786,-749.08,0.0001874,2]
[379117803,1755151853795,-956.68,0.0001874,2]
[379117804,1755151853805,-460.0,0.0001874,2]
[379117805,1755151853814,-3690.48,0.0001874,2]
[379117806,1755151853823,-1556.71,0.0001874,2]
[379117807,1755151853832,-587.73911418,0.0001874,2]
[379117808,1755151853842,-1033.05,0.0001874,2]
[379117809,1755151853851,-1344.62,0.0001874,2]
[379117810,1755151853860,-948.92,0.0001874,2]
[379117811,1755151853870,-1572.8,0.0001874,2]
[379117812,1755151853879,-460.0,0.0001874,2]
[379117813,1755151853888,-460.0,0.0001874,2]
[379117814,1755151853898,-460.0,0.0001874,2]
[379117815,1755151853908,-181.837596,0.0001874,2]
[379117816,1755151853921,-460.0,0.0001874,2]
[379117817,1755151853932,-472.84,0.0001874,2]
[379117818,1755151853942,-1323.29,0.0001874,2]
[379117819,1755151853952,-2188.76,0.0001874,2]
[379117820,1755151853961,-523.77,0.0001874,2]
[379117821,1755151853970,-460.0,0.0001874,2]
[379117822,1755151853980,-1521.59,0.0001874,2]
[379117823,1755151853988,-460.0,0.0001874,2]
[379117824,1755151853998,-1026.38,0.0001874,2]
[379117825,1755151854008,-1390.51,0.0001874,2]
[379117826,1755151854018,-2765.8,0.0001874,2]
[379117827,1755151854027,-1245.45,0.0001874,2]
[379117828,1755151854036,-556.25,0.0001874,2]
[379117829,1755151854045,-14437.55,0.0001874,2]
[379117830,1755151854055,-485.71,0.0001874,2]
[379117831,1755151854064,-3680.45,0.0001874,2]
[379117832,1755151854074,-460.0,0.0001874,2]
[379117833,1755151854083,-1501.02,0.0001874,2]
[379117834,1755151854093,-942.72,0.0001874,2]
[379117835,1755151854102,-1311.7,0.0001874,2]
[379117836,1755151854111,-460.0,0.0001874,2]
[379117837,1755151854121,-694.99,0.0001874,2]
[379117838,1755151854130,-460.0,0.0001874,2]
[379117839,1755151854140,-749.34,0.0001874,2]
[379117840,1755151854149,-1603.82,0.0001874,2]
[379117841,1755151854159,-4005.45,0.0001874,2]
[379117842,1755151854169,-460.0,0.0001874,2]
[379117843,1755151854179,-11190.83,0.0001874,2]
[379117844,1755151854188,-1085.38,0.0001874,2]
[379117845,1755151854198,-460.0,0.0001874,2]
[379117846,1755151854207,-16151.69,0.0001874,2]
[379117847,1755151854217,-468.42,0.00018741,2]
[379117848,1755151854226,-460.0,0.00018741,2]
[379117849,1755151854235,-460.0,0.00018741,2]
[379117850,1755151854244,-460.0,0.00018741,2]
[379117851,1755151854253,-460.0,0.00018741,2]
[379117852,1755151854262,-1174.94,0.00018741,2]
[379117853,1755151854272,-460.0,0.00018741,2]
[379117854,1755151854281,-460.0,0.00018741,2]
[379117855,1755151854291,-935.3,0.00018741,2]
[379117856,1755151854300,-460.0,0.00018741,2]
[379117857,1755151854309,-460.0,0.00018741,2]
[379117858,1755151854320,-460.0,0.00018741,2]
[379117859,1755151854330,-487.29,0.00018741,2]
[379117860,1755151854339,-460.0,0.00018741,2]
[379117861,1755151854349,-460.0,0.00018741,2]
[379117862,1755151854358,-460.0,0.00018741,2]
[379117863,1755151854368,-460.0,0.00018741,2]
[379117864,1755151854377,-460.0,0.00018741,2]
[379117865,1755151854386,-661.13,0.00018741,2]
[379117866,1755151854395,-1095.96,0.00018741,2]
[379117867,1755151854405,-460.0,0.00018741,2]
[379117868,1755151854414,-460.0,0.00018741,2]
[379117869,1755151854423,-460.0,0.00018741,2]
[379117870,1755151854433,-460.0,0.00018741,2]
[379117871,1755151854442,-275.819166,0.00018741,2]
[379117872,1755151854451,-460.0,0.00018741,2]
[379117873,1755151854461,-275.819166,0.00018741,2]
[379117874,1755151854470,-460.0,0.00018741,2]
[379117875,1755151854479,-460.0,0.00018741,2]
[379117876,1755151854489,-460.0,0.00018741,2]
[379117877,1755151854499,-460.0,0.00018741,2]
[379117878,1755151854509,-255.89055285,0.00018741,2]
[379117879,1755151854518,-460.0,0.00018741,2]
[379117880,1755151854527,-460.0,0.00018741,2]
[379117881,1755151854537,-211.63057154,0.00018741,2]
[379117882,1755151854547,-460.0,0.00018741,2]
[379117883,1755151854556,-460.0,0.00018741,2]
[379117884,1755151854567,-151.0,0.00018741,2]
[379117885,1755151854576,-460.0,0.00018741,2]
[379117886,1755151854586,-460.0,0.00018741,2]
[379117887,1755151854595,-460.0,0.00018741,2]
[379117888,1755151854604,-793.36,0.00018741,2]
[379117889,1755151854614,-460.0,0.00018741,2]
[379117890,1755151854623,-460.0,0.00018741,2]
[379117891,1755151854633,-555.97,0.00018741,2]
[379117892,1755151854642,-460.0,0.00018741,2]
[379117893,1755151854651,-460.0,0.00018741,2]
[379117894,1755151854660,-460.0,0.00018741,2]
[379117895,1755151854669,-460.0,0.00018741,2]
[379117896,1755151854678,-460.0,0.00018741,2]
[379117897,1755151854688,-460.0,0.00018741,2]
[379117898,1755151854697,-634.3,0.00018741,2]
[379117899,1755151854706,-460.0,0.00018741,2]
[379117900,1755151854715,-460.0,0.00018741,2]
[379117901,1755151854725,-270.008103,0.00018741,2]
[379117902,1755151854734,-270.008103,0.00018741,2]
[379117903,1755151854743,-460.0,0.00018741,2]
[379117904,1755151854752,-460.0,0.00018741,2]
[379117905,1755151854761,-460.0,0.00018741,2]
[379117906,1755151854770,-539.28,0.00018741,2]
[379117907,1755151854779,-460.0,0.00018741,2]
[379117909,1755151854789,-460.0,0.00018741,2]
[379117910,1755151854798,-460.0,0.00018741,2]
[379117912,1755151854807,-460.0,0.00018741,2]
[379117913,1755151854816,-460.0,0.00018741,2]
[379117915,1755151854826,-460.0,0.00018741,2]
[379117917,1755151854835,-460.0,0.00018741,2]
[379117918,1755151854844,-184.55461044,0.00018741,2]
[379117920,1755151854853,-460.0,0.00018741,2]
[379117921,1755151854863,-460.0,0.00018741,2]
[379117923,1755151854872,-1164.81,0.00018741,2]
[379117925,1755151854881,-460.0,0.00018741,2]
[379117926,1755151854891,-283.02855083,0.00018741,2]
[379117928,1755151854900,-460.0,0.00018741,2]
[379117930,1755151854911,-694.8,0.00018741,2]
[379117931,1755151854922,-460.0,0.00018741,2]
[379117933,1755151854931,-460.0,0.00018741,2]
[379117934,1755151854940,-460.0,0.00018741,2]
[379117936,1755151854950,-460.0,0.00018741,2]
[379117938,1755151854959,-460.0,0.00018741,2]
[379117939,1755151854968,-460.0,0.00018741,2]
[379117941,1755151854978,-151.0,0.00018742,2]
[379117943,1755151854989,-460.0,0.00018742,2]
[379117944,1755151854999,-494.72,0.00018742,2]
[379117946,1755151855009,-1173.12,0.00018742,2]
[379117947,1755151855018,-460.0,0.00018742,2]
[379117950,1755151855038,-460.0,0.00018742,2]
[379117951,1755151855048,-460.0,0.00018742,2]
[379117953,1755151855057,-275.819166,0.00018742,2]
[379117955,1755151855066,-275.819175,0.00018742,2]
[379117956,1755151855076,-842.87,0.00018742,2]
[379117958,1755151855086,-460.0,0.00018742,2]
[379117959,1755151855096,-460.0,0.00018742,2]
[379117961,1755151855105,-753.95,0.00018742,2]
[379117963,1755151855114,-460.0,0.00018742,2]
[379117964,1755151855123,-460.0,0.00018742,2]
[379117966,1755151855133,-524.58,0.00018742,2]
[379117967,1755151855142,-262.296231,0.00018742,2]